[Event "*** Titled Tuesday Blitz"]
[Site "Chess.com"]
[Date "2021.02.09"]
[Round "3"]
[White "ErikBlomqvist"]
[Black "CalinGheorghiu"]
[Result "1-0"]
[WhiteElo "2519"]
[BlackElo "2297"]
[TimeControl "180+1"]
[EndTime "10:29:36 PST"]
[Termination "ErikBlomqvist won on time"]

1. e4 {[%clk 0:03:00.9]} 1... c5 {[%clk 0:02:59.7]} 2. Nf3 {[%clk 0:03:00.7]}
2... d6 {[%clk 0:02:59.9]} 3. Nc3 {[%clk 0:02:56.6]} 3... Nf6 {[%clk 0:02:59.6]}
4. e5 {[%clk 0:02:57.1]} 4... dxe5 {[%clk 0:02:52.7]} 5. Nxe5 {[%clk 0:02:58]}
5... e6 {[%clk 0:02:50.5]} 6. Bb5+ {[%clk 0:02:57.4]} 6... Nbd7 {[%clk
0:02:50.2]} 7. d4 {[%clk 0:02:55.4]} 7... Bd6 {[%clk 0:02:44.8]} 8. Bf4 {[%clk
0:02:37]} 8... O-O {[%clk 0:02:36.8]} 9. Nxf7 {[%clk 0:02:29.3]} 9... Rxf7
{[%clk 0:02:33.1]} 10. Bxd6 {[%clk 0:02:29.5]} 10... Qb6 {[%clk 0:01:52.6]} 11.
dxc5 {[%clk 0:02:19.6]} 11... Nxc5 {[%clk 0:01:49.5]} 12. Qd4 {[%clk 0:02:09.6]}
12... Nfe4 {[%clk 0:01:22.7]} 13. Bxc5 {[%clk 0:01:42.5]} 13... Nxc5 {[%clk
0:01:16]} 14. O-O-O {[%clk 0:01:38.6]} 14... Bd7 {[%clk 0:01:00.7]} 15. Bxd7
{[%clk 0:01:25.3]} 15... Rxd7 {[%clk 0:00:59.9]} 16. Qe3 {[%clk 0:01:25.4]}
16... Rf7 {[%clk 0:00:52.3]} 17. Rd2 {[%clk 0:01:18.3]} 17... Raf8 {[%clk
0:00:51.3]} 18. Kb1 {[%clk 0:00:55.2]} 18... Rf4 {[%clk 0:00:33.1]} 19. Rhd1
{[%clk 0:00:52.4]} 19... Rb4 {[%clk 0:00:27.8]} 20. b3 {[%clk 0:00:46.5]} 20...
a5 {[%clk 0:00:24.7]} 21. Rd6 {[%clk 0:00:40.1]} 21... Qc7 {[%clk 0:00:19.3]}
22. Rxe6 {[%clk 0:00:28.5]} 22... Nxe6 {[%clk 0:00:13]} 23. Qxe6+ {[%clk
0:00:29.4]} 23... Qf7 {[%clk 0:00:13.3]} 24. Qe5 {[%clk 0:00:16.2]} 24... Qxf2
{[%clk 0:00:09.2]} 25. Nd5 {[%clk 0:00:14]} 25... Rg4 {[%clk 0:00:09.5]} 26. g3
{[%clk 0:00:09.8]} 26... Qf3 {[%clk 0:00:05.9]} 27. Re1 {[%clk 0:00:08.7]} 27...
h6 {[%clk 0:00:03.8]} 28. Nf4 {[%clk 0:00:08.4]} 28... Rgxf4 {[%clk 0:00:03]}
29. gxf4 {[%clk 0:00:09.3]} 29... Qxf4 {[%clk 0:00:03.6]} 30. Qxa5 {[%clk
0:00:08.4]} 30... Qxh2 {[%clk 0:00:02.6]} 31. Qd5+ {[%clk 0:00:08.6]} 31... Kh8
{[%clk 0:00:02]} 32. Qxb7 {[%clk 0:00:08.8]} 32... Qf4 {[%clk 0:00:02.9]} 33.
Qe7 {[%clk 0:00:07.8]} 33... Qf6 {[%clk 0:00:03.1]} 34. Qe4 {[%clk 0:00:05.6]}
34... h5 {[%clk 0:00:03.3]} 35. a4 {[%clk 0:00:05.9]} 35... g6 {[%clk
0:00:03.7]} 36. a5 {[%clk 0:00:06.2]} 36... h4 {[%clk 0:00:04.3]} 37. Rh1 {[%clk
0:00:04.6]} 37... Kg7 {[%clk 0:00:04.8]} 38. Qxh4 {[%clk 0:00:04]} 38... Qc3
{[%clk 0:00:03.3]} 39. Qh7+ {[%clk 0:00:03.1]} 39... Kf6 {[%clk 0:00:02.8]} 40.
Rf1+ {[%clk 0:00:03.7]} 40... Kg5 {[%clk 0:00:03.3]} 41. Rxf8 {[%clk 0:00:02.8]}
41... Qe1+ {[%clk 0:00:03.2]} 42. Kb2 {[%clk 0:00:03]} 42... Qe5+ {[%clk
0:00:03]} 43. Kc1 {[%clk 0:00:01.6]} 43... Qe1+ {[%clk 0:00:03.1]} 44. Kb2
{[%clk 0:00:02.2]} 44... Qe5+ {[%clk 0:00:03.6]} 45. c3 {[%clk 0:00:02.8]} 45...
Qh2+ {[%clk 0:00:01.7]} 46. Qxh2 {[%clk 0:00:02.2]} 46... Kg4 {[%clk 0:00:01.5]}
47. Qg2+ {[%clk 0:00:02.4]} 1-0

[Event "*** Titled Tuesday Blitz"]
[Site "Chess.com"]
[Date "2021.02.09"]
[Round "3"]
[White "bugsbunny444"]
[Black "c_r_e_e_p_e_r"]
[Result "1-0"]
[WhiteElo "2593"]
[BlackElo "2404"]
[TimeControl "180+1"]
[EndTime "10:29:40 PST"]
[Termination "bugsbunny444 won by checkmate"]

1. Nf3 {[%clk 0:03:00.9]} 1... d5 {[%clk 0:02:59.5]} 2. c4 {[%clk 0:03:01.4]}
2... e6 {[%clk 0:02:58]} 3. g3 {[%clk 0:03:01.7]} 3... Nf6 {[%clk 0:02:58.4]} 4.
Bg2 {[%clk 0:03:02.2]} 4... Be7 {[%clk 0:02:59]} 5. O-O {[%clk 0:03:02.7]} 5...
O-O {[%clk 0:02:59.5]} 6. b3 {[%clk 0:03:03.4]} 6... b6 {[%clk 0:02:57]} 7. Bb2
{[%clk 0:03:03.6]} 7... Bb7 {[%clk 0:02:57.5]} 8. e3 {[%clk 0:03:04.2]} 8...
Nbd7 {[%clk 0:02:51.8]} 9. Nc3 {[%clk 0:03:03.4]} 9... Re8 {[%clk 0:02:48.4]}
10. Qe2 {[%clk 0:03:03.7]} 10... c6 {[%clk 0:02:40.7]} 11. d4 {[%clk 0:02:58.1]}
11... Rc8 {[%clk 0:02:37.7]} 12. e4 {[%clk 0:02:58.3]} 12... c5 {[%clk
0:02:29.8]} 13. e5 {[%clk 0:02:48.5]} 13... Ne4 {[%clk 0:02:20.2]} 14. Nxe4
{[%clk 0:02:28]} 14... dxe4 {[%clk 0:02:21.1]} 15. Nd2 {[%clk 0:02:28.8]} 15...
cxd4 {[%clk 0:02:21.7]} 16. Bxd4 {[%clk 0:02:28]} 16... Nc5 {[%clk 0:02:13.9]}
17. Bc3 {[%clk 0:01:28.6]} 17... Qd3 {[%clk 0:01:28.6]} 18. Qxd3 {[%clk
0:01:28.6]} 18... exd3 {[%clk 0:01:27.6]} 19. Bxb7 {[%clk 0:01:23.6]} 19... Nxb7
{[%clk 0:01:28.5]} 20. Ne4 {[%clk 0:01:22.4]} 20... Red8 {[%clk 0:01:21.2]} 21.
Rad1 {[%clk 0:01:17.5]} 21... Rc7 {[%clk 0:01:09.4]} 22. Rd2 {[%clk 0:01:09.9]}
22... Rcd7 {[%clk 0:01:05.5]} 23. Rfd1 {[%clk 0:01:06.5]} 23... Nc5 {[%clk
0:00:33.5]} 24. Nxc5 {[%clk 0:01:03.2]} 24... Bxc5 {[%clk 0:00:31.7]} 25. Kg2
{[%clk 0:01:03.6]} 25... Kf8 {[%clk 0:00:31.4]} 26. Kf3 {[%clk 0:01:03.5]} 26...
Ke7 {[%clk 0:00:31.9]} 27. Ke4 {[%clk 0:01:01.6]} 27... f5+ {[%clk 0:00:31.2]}
28. exf6+ {[%clk 0:00:42.4]} 28... gxf6 {[%clk 0:00:30.8]} 29. g4 {[%clk
0:00:29.5]} 29... Bd4 {[%clk 0:00:21.5]} 30. Bb4+ {[%clk 0:00:18.6]} 30... Bc5
{[%clk 0:00:20.2]} 31. Bxc5+ {[%clk 0:00:18.4]} 31... bxc5 {[%clk 0:00:21.1]}
32. Rxd3 {[%clk 0:00:17.9]} 32... f5+ {[%clk 0:00:20.2]} 33. gxf5 {[%clk
0:00:18.1]} 33... exf5+ {[%clk 0:00:21.1]} 34. Ke3 {[%clk 0:00:18.5]} 34...
Rxd3+ {[%clk 0:00:16.1]} 35. Rxd3 {[%clk 0:00:18.5]} 35... Re8 {[%clk 0:00:17]}
36. Kf4 {[%clk 0:00:17.8]} 36... Kf6 {[%clk 0:00:14.6]} 37. Rd6+ {[%clk
0:00:17.9]} 37... Ke7 {[%clk 0:00:15]} 38. Ra6 {[%clk 0:00:17.7]} 38... Rg8
{[%clk 0:00:12.2]} 39. Kxf5 {[%clk 0:00:16]} 39... Rf8+ {[%clk 0:00:10.7]} 40.
Ke5 {[%clk 0:00:15.6]} 40... Rxf2 {[%clk 0:00:11.6]} 41. Rxa7+ {[%clk
0:00:15.3]} 41... Ke8 {[%clk 0:00:11.1]} 42. Rxh7 {[%clk 0:00:15.8]} 42... Rxa2
{[%clk 0:00:10.8]} 43. Kd5 {[%clk 0:00:16.3]} 43... Rb2 {[%clk 0:00:10.5]} 44.
Rh3 {[%clk 0:00:16.1]} 44... Kd7 {[%clk 0:00:07.7]} 45. Kxc5 {[%clk 0:00:16.4]}
45... Kc7 {[%clk 0:00:08.1]} 46. Rh7+ {[%clk 0:00:16.1]} 46... Kd8 {[%clk
0:00:08.4]} 47. b4 {[%clk 0:00:16.6]} 47... Rf2 {[%clk 0:00:06.3]} 48. b5 {[%clk
0:00:16.1]} 48... Rf5+ {[%clk 0:00:06.3]} 49. Kb4 {[%clk 0:00:16.4]} 49... Rf1
{[%clk 0:00:05.7]} 50. Ka5 {[%clk 0:00:16]} 50... Rb1 {[%clk 0:00:06.6]} 51. c5
{[%clk 0:00:16]} 51... Ra1+ {[%clk 0:00:07.2]} 52. Kb6 {[%clk 0:00:16.2]} 52...
Rg1 {[%clk 0:00:05.4]} 53. c6 {[%clk 0:00:16.5]} 53... Rg6 {[%clk 0:00:05.2]}
54. Kb7 {[%clk 0:00:16.3]} 54... Rg5 {[%clk 0:00:03.4]} 55. b6 {[%clk
0:00:16.7]} 55... Rg8 {[%clk 0:00:01.5]} 56. c7+ {[%clk 0:00:16.4]} 56... Ke8
{[%clk 0:00:02.1]} 57. c8=Q# {[%clk 0:00:16.7]} 1-0

[Event "*** Titled Tuesday Blitz"]
[Site "Chess.com"]
[Date "2021.02.09"]
[Round "3"]
[White "juancruzarias"]
[Black "TimofeevAr"]
[Result "0-1"]
[WhiteElo "2625"]
[BlackElo "2873"]
[TimeControl "180+1"]
[EndTime "10:29:44 PST"]
[Termination "TimofeevAr won by resignation"]

1. d4 {[%clk 0:03:00.9]} 1... Nf6 {[%clk 0:02:59.2]} 2. Nf3 {[%clk 0:03:01.3]}
2... g6 {[%clk 0:02:59.3]} 3. Bg5 {[%clk 0:03:01.6]} 3... Bg7 {[%clk 0:02:59.4]}
4. Nbd2 {[%clk 0:03:02.1]} 4... h6 {[%clk 0:02:56.9]} 5. Bh4 {[%clk 0:03:01.7]}
5... d6 {[%clk 0:02:54.4]} 6. c3 {[%clk 0:03:00.2]} 6... O-O {[%clk 0:02:52.4]}
7. e4 {[%clk 0:03:00.1]} 7... Nc6 {[%clk 0:02:47.9]} 8. Be2 {[%clk 0:02:58.4]}
8... e5 {[%clk 0:02:47.8]} 9. dxe5 {[%clk 0:02:59.3]} 9... Nxe5 {[%clk
0:02:44.7]} 10. Nxe5 {[%clk 0:02:59.7]} 10... dxe5 {[%clk 0:02:45]} 11. O-O
{[%clk 0:03:00]} 11... Qe7 {[%clk 0:02:44]} 12. Qc2 {[%clk 0:02:59.6]} 12... a5
{[%clk 0:02:37.7]} 13. a4 {[%clk 0:02:57.4]} 13... b6 {[%clk 0:02:36.1]} 14.
Rfe1 {[%clk 0:02:53.1]} 14... Bb7 {[%clk 0:02:35.6]} 15. Bf1 {[%clk 0:02:51.7]}
15... Qe6 {[%clk 0:02:30.9]} 16. Nc4 {[%clk 0:02:47.3]} 16... Nd7 {[%clk
0:02:28.9]} 17. f3 {[%clk 0:02:35]} 17... Bf6 {[%clk 0:02:23.3]} 18. Bf2 {[%clk
0:02:29.7]} 18... Be7 {[%clk 0:02:19.8]} 19. Ne3 {[%clk 0:02:20.4]} 19... Bc5
{[%clk 0:02:16.2]} 20. Bc4 {[%clk 0:02:19.9]} 20... Qe7 {[%clk 0:02:11.6]} 21.
Nd5 {[%clk 0:02:16.7]} 21... Bxf2+ {[%clk 0:02:09.7]} 22. Qxf2 {[%clk
0:02:14.5]} 22... Bxd5 {[%clk 0:02:09.8]} 23. Bxd5 {[%clk 0:02:02.9]} 23... Rad8
{[%clk 0:02:09.3]} 24. Red1 {[%clk 0:01:49.2]} 24... Kg7 {[%clk 0:02:08.6]} 25.
Qe3 {[%clk 0:01:42.7]} 25... h5 {[%clk 0:01:55.8]} 26. Bb3 {[%clk 0:01:13.6]}
26... Nc5 {[%clk 0:01:53.5]} 27. Bc2 {[%clk 0:01:13.6]} 27... Ne6 {[%clk
0:01:53.1]} 28. g3 {[%clk 0:01:09.2]} 28... h4 {[%clk 0:01:51.8]} 29. Rxd8
{[%clk 0:01:08.5]} 29... Rxd8 {[%clk 0:01:51.3]} 30. Rd1 {[%clk 0:01:08.9]}
30... Rh8 {[%clk 0:01:42]} 31. Bb3 {[%clk 0:01:05.2]} 31... Nc5 {[%clk
0:01:41.2]} 32. Bc2 {[%clk 0:01:05.5]} 32... Qe6 {[%clk 0:01:35.1]} 33. Qg5
{[%clk 0:00:34]} 33... hxg3 {[%clk 0:01:32.9]} 34. hxg3 {[%clk 0:00:33.1]} 34...
Nd7 {[%clk 0:01:15.1]} 35. Rd2 {[%clk 0:00:22.6]} 35... Qh3 {[%clk 0:01:09]} 36.
Rg2 {[%clk 0:00:22.4]} 36... Qh1+ {[%clk 0:00:59.4]} 37. Kf2 {[%clk 0:00:22.8]}
37... Qa1 {[%clk 0:00:54.1]} 38. Qd2 {[%clk 0:00:21.7]} 38... Nf6 {[%clk
0:00:53]} 39. Bb3 {[%clk 0:00:20.7]} 39... Rh1 {[%clk 0:00:49.2]} 40. Bc4 {[%clk
0:00:21]} 40... Rb1 {[%clk 0:00:47.2]} 41. Ke3 {[%clk 0:00:19.4]} 41... Qxa4
{[%clk 0:00:45.3]} 42. b3 {[%clk 0:00:19]} 42... Qa3 {[%clk 0:00:43.7]} 43. Rh2
{[%clk 0:00:19.2]} 43... Qc1 {[%clk 0:00:37.9]} 44. Kd3 {[%clk 0:00:19.3]} 44...
Qxd2+ {[%clk 0:00:37.4]} 45. Kxd2 {[%clk 0:00:19.6]} 45... Rg1 {[%clk
0:00:37.2]} 46. g4 {[%clk 0:00:19.4]} 46... c6 {[%clk 0:00:36.7]} 47. Ke3 {[%clk
0:00:19.7]} 47... b5 {[%clk 0:00:36.8]} 48. Bd3 {[%clk 0:00:20.2]} 48... Rc1
{[%clk 0:00:33.3]} 49. Kd2 {[%clk 0:00:17.2]} 49... Rg1 {[%clk 0:00:31.9]} 50.
Ke3 {[%clk 0:00:17]} 50... Nd7 {[%clk 0:00:32.1]} 51. Ra2 {[%clk 0:00:16.6]}
51... Nc5 {[%clk 0:00:27.6]} 52. Rxa5 {[%clk 0:00:15.5]} 52... Nxb3 {[%clk
0:00:25.1]} 53. Ra7 {[%clk 0:00:15.8]} 53... Nc5 {[%clk 0:00:22.6]} 54. Rc7
{[%clk 0:00:15.6]} 54... Rc1 {[%clk 0:00:21]} 55. Kd2 {[%clk 0:00:12.5]} 55...
Nb3+ {[%clk 0:00:20.7]} 56. Ke2 {[%clk 0:00:12.7]} 56... Rxc3 {[%clk 0:00:20.7]}
57. g5 {[%clk 0:00:13.3]} 57... Nd4+ {[%clk 0:00:20.5]} 58. Kd2 {[%clk
0:00:13.5]} 58... b4 {[%clk 0:00:19.2]} 59. f4 {[%clk 0:00:14]} 59... exf4
{[%clk 0:00:18.9]} 60. e5 {[%clk 0:00:14.4]} 60... Nf3+ {[%clk 0:00:18.9]} 61.
Ke2 {[%clk 0:00:14.6]} 61... Nxe5 {[%clk 0:00:19.4]} 62. Kd2 {[%clk 0:00:15]}
62... Rxd3+ {[%clk 0:00:19.2]} 0-1

[Event "*** Titled Tuesday Blitz"]
[Site "Chess.com"]
[Date "2021.02.09"]
[Round "3"]
[White "Pintacara"]
[Black "vinniethepooh"]
[Result "1/2-1/2"]
[WhiteElo "2504"]
[BlackElo "2746"]
[TimeControl "180+1"]
[EndTime "10:29:44 PST"]
[Termination "Game drawn by repetition"]

1. d4 {[%clk 0:03:00.9]} 1... Nf6 {[%clk 0:02:59.9]} 2. Bg5 {[%clk 0:03:00.6]}
2... d5 {[%clk 0:02:57.8]} 3. Bxf6 {[%clk 0:03:00.6]} 3... exf6 {[%clk
0:02:58.7]} 4. e3 {[%clk 0:03:01]} 4... c6 {[%clk 0:02:56.2]} 5. c4 {[%clk
0:03:00.7]} 5... Be6 {[%clk 0:02:50.7]} 6. cxd5 {[%clk 0:02:59.7]} 6... Bxd5
{[%clk 0:02:42.1]} 7. Nc3 {[%clk 0:02:59]} 7... Bb4 {[%clk 0:02:42.6]} 8. Nf3
{[%clk 0:02:51.1]} 8... O-O {[%clk 0:02:41.7]} 9. Be2 {[%clk 0:02:50.6]} 9...
Qa5 {[%clk 0:02:37.6]} 10. Qd2 {[%clk 0:02:41.8]} 10... Re8 {[%clk 0:02:34.6]}
11. O-O {[%clk 0:02:39.8]} 11... Nd7 {[%clk 0:02:35.2]} 12. a3 {[%clk
0:02:37.5]} 12... Bxc3 {[%clk 0:02:35.8]} 13. bxc3 {[%clk 0:02:38.4]} 13... Qa4
{[%clk 0:01:49.4]} 14. Rfb1 {[%clk 0:02:12.4]} 14... Nb6 {[%clk 0:01:50]} 15.
Rb4 {[%clk 0:01:44.3]} 15... Qa5 {[%clk 0:01:50.5]} 16. Qb2 {[%clk 0:01:39.3]}
16... Rac8 {[%clk 0:01:03.1]} 17. c4 {[%clk 0:01:37.3]} 17... Bxf3 {[%clk
0:00:44.5]} 18. Bxf3 {[%clk 0:01:38.2]} 18... c5 {[%clk 0:00:44.8]} 19. dxc5
{[%clk 0:01:16.3]} 19... Rxc5 {[%clk 0:00:31.4]} 20. Bxb7 {[%clk 0:01:15.9]}
20... Nxc4 {[%clk 0:00:23]} 21. Qe2 {[%clk 0:01:01.1]} 21... Qc7 {[%clk
0:00:19.9]} 22. Bf3 {[%clk 0:00:25.8]} 22... Nxa3 {[%clk 0:00:14]} 23. Ra4
{[%clk 0:00:20.4]} 23... Rd8 {[%clk 0:00:04.9]} 24. h3 {[%clk 0:00:14]} 24...
Rc1+ {[%clk 0:00:05.2]} 25. Rxc1 {[%clk 0:00:13.2]} 25... Qxc1+ {[%clk
0:00:06.1]} 26. Kh2 {[%clk 0:00:14.1]} 26... Qc7+ {[%clk 0:00:05.5]} 27. g3
{[%clk 0:00:13.1]} 27... Nb1 {[%clk 0:00:05.9]} 28. Qb2 {[%clk 0:00:09.9]} 28...
Nd2 {[%clk 0:00:03.7]} 29. Bg2 {[%clk 0:00:07.4]} 29... h6 {[%clk 0:00:02.8]}
30. Rd4 {[%clk 0:00:05.9]} 30... Rxd4 {[%clk 0:00:02.8]} 31. exd4 {[%clk
0:00:05.9]} 31... Nc4 {[%clk 0:00:02.8]} 32. Qb4 {[%clk 0:00:05.1]} 32... Nb6
{[%clk 0:00:02.7]} 33. d5 {[%clk 0:00:04.9]} 33... g6 {[%clk 0:00:03]} 34. d6
{[%clk 0:00:04.6]} 34... Qd7 {[%clk 0:00:03.7]} 35. Qc5 {[%clk 0:00:03.5]} 35...
Kg7 {[%clk 0:00:04]} 36. Bc6 {[%clk 0:00:03.1]} 36... Qd8 {[%clk 0:00:04.6]} 37.
Qd4 {[%clk 0:00:02.7]} 37... Nc8 {[%clk 0:00:04.2]} 38. d7 {[%clk 0:00:02.7]}
38... Nb6 {[%clk 0:00:04.8]} 39. Bb5 {[%clk 0:00:02.8]} 39... a6 {[%clk
0:00:05]} 40. Bc6 {[%clk 0:00:02.6]} 40... a5 {[%clk 0:00:05.7]} 41. Qc5 {[%clk
0:00:02.6]} 41... a4 {[%clk 0:00:05.7]} 42. Qd6 {[%clk 0:00:02.7]} 42... Nc4
{[%clk 0:00:05.6]} 43. Qc5 {[%clk 0:00:02.6]} 43... Ne5 {[%clk 0:00:06]} 44. Qd5
{[%clk 0:00:02.3]} 44... Nxc6 {[%clk 0:00:06.1]} 45. Qxc6 {[%clk 0:00:02.8]}
45... a3 {[%clk 0:00:07]} 46. Qc8 {[%clk 0:00:03.1]} 46... Qb6 {[%clk
0:00:05.6]} 47. d8=Q {[%clk 0:00:03.3]} 47... Qxf2+ {[%clk 0:00:05.8]} 48. Kh1
{[%clk 0:00:03.8]} 48... Qf1+ {[%clk 0:00:06.4]} 49. Kh2 {[%clk 0:00:04.4]}
49... Qf2+ {[%clk 0:00:07.3]} 50. Kh1 {[%clk 0:00:05.1]} 50... Qf1+ {[%clk
0:00:07.7]} 51. Kh2 {[%clk 0:00:05.8]} 51... Qf2+ {[%clk 0:00:04.1]} 1/2-1/2

[Event "*** Titled Tuesday Blitz"]
[Site "Chess.com"]
[Date "2021.02.09"]
[Round "3"]
[White "Goryachkina"]
[Black "ArjunErigaisi2003"]
[Result "1-0"]
[WhiteElo "2691"]
[BlackElo "2900"]
[TimeControl "180+1"]
[EndTime "10:29:46 PST"]
[Termination "Goryachkina won by resignation"]

1. e4 {[%clk 0:02:59.9]} 1... b6 {[%clk 0:02:58.3]} 2. d4 {[%clk 0:02:59]} 2...
Bb7 {[%clk 0:02:59.2]} 3. Bd3 {[%clk 0:02:57.8]} 3... e6 {[%clk 0:02:57.7]} 4.
Nf3 {[%clk 0:02:52.2]} 4... d5 {[%clk 0:02:52.8]} 5. e5 {[%clk 0:02:48]} 5... h6
{[%clk 0:02:47.2]} 6. c3 {[%clk 0:02:42.4]} 6... Qd7 {[%clk 0:02:46.9]} 7. Nbd2
{[%clk 0:02:38.3]} 7... c5 {[%clk 0:02:45.5]} 8. Nf1 {[%clk 0:02:28.8]} 8... Ne7
{[%clk 0:02:44.1]} 9. Ng3 {[%clk 0:02:28.2]} 9... Ba6 {[%clk 0:02:42.1]} 10. O-O
{[%clk 0:02:25.3]} 10... Nec6 {[%clk 0:02:40.2]} 11. Bf4 {[%clk 0:02:17.5]}
11... g6 {[%clk 0:02:31.1]} 12. Bxa6 {[%clk 0:02:01.6]} 12... Nxa6 {[%clk
0:02:32]} 13. Qd2 {[%clk 0:02:01]} 13... c4 {[%clk 0:02:27.8]} 14. h4 {[%clk
0:01:57.2]} 14... Nc7 {[%clk 0:02:26.2]} 15. Nh2 {[%clk 0:01:54.4]} 15... Be7
{[%clk 0:02:14.3]} 16. h5 {[%clk 0:01:52.4]} 16... g5 {[%clk 0:02:11.8]} 17. Be3
{[%clk 0:01:52.6]} 17... O-O-O {[%clk 0:02:07.5]} 18. b3 {[%clk 0:01:49.3]}
18... f5 {[%clk 0:01:42.6]} 19. exf6 {[%clk 0:01:20.1]} 19... Bxf6 {[%clk
0:01:42.8]} 20. bxc4 {[%clk 0:01:12.2]} 20... dxc4 {[%clk 0:01:43.7]} 21. Qe2
{[%clk 0:01:11.5]} 21... Qd5 {[%clk 0:01:38.4]} 22. Ng4 {[%clk 0:01:10.1]} 22...
Bg7 {[%clk 0:00:53.8]} 23. Bd2 {[%clk 0:01:06.5]} 23... Bxd4 {[%clk 0:00:47.8]}
24. cxd4 {[%clk 0:00:34.6]} 24... Nxd4 {[%clk 0:00:48.7]} 25. Qe4 {[%clk
0:00:29.1]} 25... Qxe4 {[%clk 0:00:14.9]} 26. Nxe4 {[%clk 0:00:29.2]} 26... Ne2+
{[%clk 0:00:15.8]} 27. Kh2 {[%clk 0:00:26.9]} 27... Rd4 {[%clk 0:00:16.7]} 28.
f3 {[%clk 0:00:25.4]} 28... Nd5 {[%clk 0:00:15.4]} 29. Rfe1 {[%clk 0:00:17]}
29... Nef4 {[%clk 0:00:15.3]} 30. Bxf4 {[%clk 0:00:14]} 30... Nxf4 {[%clk
0:00:16.2]} 31. Re3 {[%clk 0:00:12.5]} 31... Nxh5 {[%clk 0:00:13.7]} 32. a4
{[%clk 0:00:12.1]} 32... Nf4 {[%clk 0:00:12.5]} 33. Rc1 {[%clk 0:00:12.1]} 33...
Nd5 {[%clk 0:00:10.9]} 34. Re2 {[%clk 0:00:11.3]} 34... Kb8 {[%clk 0:00:07.9]}
35. Rec2 {[%clk 0:00:10.3]} 35... Rc8 {[%clk 0:00:06.7]} 36. Nd6 {[%clk
0:00:10.3]} 36... Rc6 {[%clk 0:00:04.1]} 37. Nxc4 {[%clk 0:00:07.1]} 37... Nb4
{[%clk 0:00:04.4]} 38. Nge5 {[%clk 0:00:05.4]} 38... Rc5 {[%clk 0:00:03.3]} 39.
Re2 {[%clk 0:00:04.6]} 39... Nd3 {[%clk 0:00:02.5]} 40. Nxd3 {[%clk 0:00:04.3]}
40... Rxd3 {[%clk 0:00:03.4]} 41. Rec2 {[%clk 0:00:04.6]} 41... Rd4 {[%clk
0:00:03.4]} 42. Ne3 {[%clk 0:00:04.3]} 42... Rxc2 {[%clk 0:00:03.1]} 43. Rxc2
{[%clk 0:00:05.1]} 43... Rxa4 {[%clk 0:00:04]} 44. Rc6 {[%clk 0:00:05.8]} 44...
Rb4 {[%clk 0:00:02.8]} 45. Rxe6 {[%clk 0:00:06.1]} 45... a5 {[%clk 0:00:03.4]}
46. Nd5 {[%clk 0:00:06.5]} 46... Rh4+ {[%clk 0:00:02.6]} 47. Kg3 {[%clk
0:00:06.4]} 47... b5 {[%clk 0:00:03.5]} 48. Rb6+ {[%clk 0:00:06.6]} 48... Ka7
{[%clk 0:00:03.8]} 49. Rxb5 {[%clk 0:00:07.3]} 49... a4 {[%clk 0:00:04.7]} 50.
Nc3 {[%clk 0:00:06.8]} 50... Ka6 {[%clk 0:00:04.7]} 51. Rb8 {[%clk 0:00:06.9]}
51... Ka5 {[%clk 0:00:04.8]} 52. Ra8+ {[%clk 0:00:06.6]} 52... Kb4 {[%clk
0:00:04.1]} 53. Rxa4+ {[%clk 0:00:06.8]} 1-0

[Event "*** Titled Tuesday Blitz"]
[Site "Chess.com"]
[Date "2021.02.09"]
[Round "3"]
[White "Bulldog167"]
[Black "Aygehovit1992"]
[Result "1/2-1/2"]
[WhiteElo "2830"]
[BlackElo "2616"]
[TimeControl "180+1"]
[EndTime "10:29:46 PST"]
[Termination "Game drawn - insufficient material"]

1. d4 {[%clk 0:03:00.9]} 1... Nf6 {[%clk 0:02:59.9]} 2. c4 {[%clk 0:03:01.6]}
2... g6 {[%clk 0:03:00.3]} 3. Nc3 {[%clk 0:03:01.7]} 3... d5 {[%clk 0:03:00.8]}
4. Nf3 {[%clk 0:03:01.7]} 4... Bg7 {[%clk 0:03:00.7]} 5. Bg5 {[%clk 0:03:02.4]}
5... Ne4 {[%clk 0:02:59.9]} 6. Bf4 {[%clk 0:03:03]} 6... Nxc3 {[%clk 0:02:57]}
7. bxc3 {[%clk 0:03:03.9]} 7... dxc4 {[%clk 0:02:55.9]} 8. e3 {[%clk 0:03:02.1]}
8... Be6 {[%clk 0:02:52.2]} 9. Ng5 {[%clk 0:02:52.6]} 9... Bd5 {[%clk
0:02:51.9]} 10. e4 {[%clk 0:02:49.8]} 10... h6 {[%clk 0:02:51.9]} 11. exd5
{[%clk 0:02:50]} 11... hxg5 {[%clk 0:02:51.8]} 12. Bxg5 {[%clk 0:02:49]} 12...
Qxd5 {[%clk 0:02:49.4]} 13. Be3 {[%clk 0:02:45]} 13... Nd7 {[%clk 0:02:49.3]}
14. Be2 {[%clk 0:02:39.2]} 14... Nb6 {[%clk 0:02:35.7]} 15. Bf3 {[%clk
0:02:38.4]} 15... Qa5 {[%clk 0:02:35.3]} 16. Bxb7 {[%clk 0:02:04.8]} 16... Qxc3+
{[%clk 0:02:34.7]} 17. Bd2 {[%clk 0:01:43.1]} 17... Qxd4 {[%clk 0:02:34.5]} 18.
Bxa8 {[%clk 0:01:39.8]} 18... Qxa1 {[%clk 0:02:25.9]} 19. Bc6+ {[%clk
0:01:39.9]} 19... Kf8 {[%clk 0:02:25.3]} 20. Qxa1 {[%clk 0:01:19.4]} 20... Bxa1
{[%clk 0:02:26.2]} 21. Ke2 {[%clk 0:01:20]} 21... Be5 {[%clk 0:02:12.4]} 22. f4
{[%clk 0:01:08.3]} 22... Bd6 {[%clk 0:02:12.4]} 23. a4 {[%clk 0:01:05.2]} 23...
Rh5 {[%clk 0:02:01.4]} 24. a5 {[%clk 0:00:57.6]} 24... Rc5 {[%clk 0:01:19.6]}
25. axb6 {[%clk 0:00:45.5]} 25... Rxc6 {[%clk 0:01:19.2]} 26. bxa7 {[%clk
0:00:45.6]} 26... Ra6 {[%clk 0:01:19.1]} 27. Be3 {[%clk 0:00:43]} 27... c5
{[%clk 0:01:14.5]} 28. Rc1 {[%clk 0:00:43.3]} 28... Rxa7 {[%clk 0:01:11.6]} 29.
Rxc4 {[%clk 0:00:43.8]} 29... Ra2+ {[%clk 0:01:10.9]} 30. Kf3 {[%clk 0:00:43.8]}
30... Ra3 {[%clk 0:01:11.1]} 31. Ke2 {[%clk 0:00:41.2]} 31... Ra5 {[%clk
0:01:10.7]} 32. h4 {[%clk 0:00:39.4]} 32... f5 {[%clk 0:01:09.5]} 33. Kf3 {[%clk
0:00:38.3]} 33... Kf7 {[%clk 0:01:05.2]} 34. g4 {[%clk 0:00:38.8]} 34... fxg4+
{[%clk 0:01:00.8]} 35. Kxg4 {[%clk 0:00:38.7]} 35... Ke6 {[%clk 0:01:00]} 36.
Kg5 {[%clk 0:00:34.2]} 36... Ra3 {[%clk 0:00:54.4]} 37. Bf2 {[%clk 0:00:12.5]}
37... Rf3 {[%clk 0:00:53.9]} 38. Bxc5 {[%clk 0:00:12.4]} 38... Kd5 {[%clk
0:00:26.3]} 39. Bxd6 {[%clk 0:00:12.8]} 39... Kxc4 {[%clk 0:00:26.9]} 40. Bxe7
{[%clk 0:00:13.4]} 40... Kd5 {[%clk 0:00:27.3]} 41. Kxg6 {[%clk 0:00:10.7]}
41... Rxf4 {[%clk 0:00:24.9]} 42. h5 {[%clk 0:00:10.1]} 42... Ke6 {[%clk
0:00:25.3]} 43. Bg5 {[%clk 0:00:10]} 43... Rf8 {[%clk 0:00:18.8]} 44. Bh6 {[%clk
0:00:08.9]} 44... Rf1 {[%clk 0:00:15.4]} 45. Bg5 {[%clk 0:00:07.1]} 45... Rf8
{[%clk 0:00:13.9]} 46. Bh6 {[%clk 0:00:07.2]} 46... Ra8 {[%clk 0:00:13.4]} 47.
Bg7 {[%clk 0:00:07.1]} 47... Ra2 {[%clk 0:00:12.9]} 48. Bf6 {[%clk 0:00:04.3]}
48... Rg2+ {[%clk 0:00:08.8]} 49. Bg5 {[%clk 0:00:04.4]} 49... Rh2 {[%clk
0:00:06.1]} 50. h6 {[%clk 0:00:04.8]} 50... Kd7 {[%clk 0:00:05.2]} 51. h7 {[%clk
0:00:03.2]} 51... Rxh7 {[%clk 0:00:03.2]} 52. Kxh7 {[%clk 0:00:04.1]} 1/2-1/2